bitfinex-derivatives/quotes_SOLF0:USTF0_20220104
["timestamp","ask_amount","ask_price","bid_price","bid_amount"]
[1641310595442,4.08399714,172.45,172.42,27.66479]
[1641310596644,2.10622986,172.47,172.42,27.66479]
[1641310597545,4.09940659,172.43,172.42,31.74862143]
[1641310597844,4.09940659,172.43,172.42,37.73162143]
[1641310598444,14.4038452,172.47,172.42,33.64779]
[1641310598646,4.09889913,172.45,172.42,35.63313674]
[1641310598845,4.09889913,172.45,172.42,29.65013674]
[1641310599143,41.2576,172.48,172.43,1.98534674]
[1641310600348,2.11359217,172.47,172.45,4.09893228]
[1641310600944,53.55521534,172.48,172.44,4.09893228]
[1641310602348,2.11375965,172.47,172.44,4.09893228]
[1641310602749,41.2576,172.48,172.44,4.09893228]
[1641310603049,41.2576,172.48,172.45,4.09893228]
[1641310603652,2.11358732,172.47,172.45,6.08427902]
[1641310604048,41.2576,172.48,172.45,4.09893228]
[1641310605149,2.11360596,172.47,172.45,4.09893228]
[1641310605649,41.2576,172.48,172.45,4.09893228]
[1641310606251,2.11360282,172.47,172.45,4.09893228]
[1641310606949,41.2576,172.48,172.45,4.09893228]
[1641310607250,53.55521534,172.48,172.43,6.08427902]
[1641310608051,2.11387281,172.47,172.43,6.08427902]
[1641310608451,53.55521534,172.48,172.43,6.08427902]
[1641310609351,2.11388202,172.47,172.43,6.08427902]
[1641310610051,53.55521534,172.48,172.43,6.08427902]
[1641310610852,2.11275781,172.47,172.43,6.08427902]
[1641310611253,53.55521534,172.48,172.43,6.08427902]
[1641310612554,2.11273708,172.47,172.43,6.08427902]
[1641310612954,41.2576,172.48,172.44,4.09893228]
[1641310614456,2.11266104,172.47,172.44,4.09893228]
[1641310615258,41.2576,172.48,172.44,4.09893228]
[1641310615658,4.09695288,172.45,172.43,6.08427902]
[1641310616359,53.55521534,172.48,172.43,6.08427902]
[1641310616559,4.09695448,172.44,172.43,6.08427902]
[1641310617859,53.55521534,172.48,172.43,6.08427902]
[1641310618059,14.41161089,172.47,172.43,6.08427902]
[1641310618662,41.2576,172.48,172.43,6.08427902]
[1641310619365,14.41183892,172.47,172.43,6.08427902]
[1641310619864,14.41183892,172.47,172.43,9.08427902]
[1641310620064,14.41183892,172.47,172.43,6.08427902]
[1641310620266,41.2576,172.48,172.43,6.08427902]
[1641310621067,2.11349595,172.47,172.45,4.09893228]
[1641310622268,41.2576,172.48,172.45,4.09893228]
[1641310622672,2.11352204,172.47,172.45,4.09893228]
[1641310623172,41.2576,172.48,172.45,4.09893228]
[1641310624574,2.11359579,172.47,172.45,4.09893228]
[1641310625474,41.2576,172.48,172.45,4.09893228]
[1641310625875,2.11339543,172.47,172.45,4.09893228]
[1641310626476,41.2576,172.48,172.45,4.09893228]
[1641310627779,2.11340573,172.47,172.45,6.08427902]
[1641310628578,42.214,172.51,172.45,1.98534674]
[1641310628779,54.509395,172.51,172.45,1.98534674]
[1641310629181,54.509395,172.51,172.47,27.66479]
[1641310629784,2.11297446,172.5,172.47,31.76320752]
[1641310630584,54.509395,172.51,172.47,31.76320752]
[1641310631593,2.1129203,172.5,172.47,31.76320752]
[1641310632387,54.5091463,172.51,172.47,31.76320752]
[1641310633287,2.11300259,172.5,172.47,31.76320752]
[1641310633888,54.5091463,172.51,172.47,31.76320752]
[1641310634589,2.11293837,172.5,172.47,31.76320752]
[1641310635189,54.5091463,172.51,172.47,31.76320752]
[1641310635588,2.11287756,172.5,172.47,31.76320752]
[1641310635989,2.11287756,172.5,172.48,3.0]
[1641310636190,2.11287756,172.5,172.48,8.667]
[1641310636390,2.11287756,172.5,172.48,5.667]
[1641310636891,12.2951463,172.51,172.48,5.667]
[1641310637090,12.2951463,172.53,172.49,4.09841752]
[1641310637293,12.2951463,172.53,172.5,27.66479]
[1641310637990,10.47729409,172.56,172.5,34.66479]
[1641310638190,2.11236879,172.56,172.5,35.76320752]
[1641310638389,2.11236879,172.53,172.5,35.76320752]
[1641310639192,75.33924716,172.58,172.5,35.76320752]
[1641310639193,12.29218376,172.55,172.51,33.74885517]
[1641310639894,12.29218376,172.55,172.52,6.08406517]
[1641310640093,14.4039307,172.57,172.52,11.77506517]
[1641310640795,14.4039307,172.57,172.53,6.08406517]
[1641310641192,14.4039307,172.57,172.56,27.66479]
[1641310641693,14.4039307,172.57,172.56,33.35479]
[1641310642895,14.4039307,172.57,172.56,27.66479]
[1641310645196,42.6338,172.58,172.56,27.66479]
[1641310645696,32.70544716,172.61,172.56,27.66479]
[1641310646096,2.11095451,172.57,172.56,27.66479]
[1641310646897,12.29020269,172.58,172.56,27.66479]
[1641310647102,12.29020269,172.58,172.56,33.18279]
[1641310647602,8.36037567,172.61,172.56,33.18279]
[1641310647603,12.29020269,172.59,172.56,33.18279]
[1641310650503,8.36037567,172.61,172.56,37.28120752]
[1641310650504,12.29020269,172.6,172.56,37.28120752]
[1641310651006,12.29020269,172.6,172.56,33.18279]
[1641310652008,12.29020269,172.6,172.56,27.66479]
[1641310652209,12.29020269,172.59,172.56,27.66479]
[1641310652815,12.29036356,172.57,172.56,27.66479]
[1641310653612,44.06582283,172.61,172.56,27.66479]
[1641310653814,41.06582283,172.61,172.56,27.66479]
[1641310654614,12.28978486,172.59,172.56,27.66479]
[1641310655416,12.28978486,172.59,172.58,27.66479]
[1641310655617,12.28978486,172.61,172.58,27.66479]
[1641310656818,38.6802,172.62,172.58,27.66479]
[1641310657420,38.6802,172.62,172.61,27.66479]
[1641310657818,41.95702644,172.62,172.61,32.03379]
[1641310658220,32.70544716,172.64,172.61,32.03379]
[1641310658518,71.81434716,172.65,172.61,32.03379]
[1641310658718,3.27682171,172.63,172.61,32.03379]
[1641310659118,35.98226887,172.64,172.61,32.03379]
[1641310659618,3.27682171,172.63,172.61,32.03379]
[1641310659821,3.27682171,172.63,172.61,27.66479]
[1641310660821,3.0,172.62,172.56,4.09841752]
[1641310661023,3.0,172.61,172.56,4.09841752]
[1641310661222,3.27682171,172.63,172.56,4.09841752]
[1641310661223,3.0,172.59,172.56,4.09841752]
[1641310661722,3.0,172.58,172.53,4.09841752]
[1641310661924,10.74482171,172.58,172.53,4.09841752]
[1641310662223,6.27682171,172.57,172.53,4.09841752]
[1641310662625,3.27682171,172.56,172.53,4.09841752]
[1641310662823,5.38702356,172.56,172.5,4.09841752]
[1641310663023,2.11020185,172.56,172.5,4.09841752]
[1641310663724,2.11020185,172.55,172.5,4.09841752]
[1641310664526,2.11020185,172.57,172.5,4.09841752]
[1641310665126,5.11020185,172.58,172.5,4.09841752]
[1641310665726,5.38814195,172.57,172.5,6.08416675]
[1641310666027,2.11020185,172.57,172.5,6.08416675]
[1641310668029,5.11020185,172.58,172.5,6.08416675]
[1641310668429,2.11020185,172.57,172.5,6.08416675]
[1641310668630,5.3881582,172.57,172.5,6.08416675]
[1641310668831,5.3881582,172.57,172.5,6.675e-05]
[1641310669030,3.0,172.51,172.46,12.2926118]
[1641310669230,3.0,172.5,172.47,14.27669553]
[1641310669431,34.27979,172.51,172.47,14.27669553]
[1641310669631,3.0,172.5,172.47,14.27669553]
[1641310669833,3.0,172.48,172.47,14.27669553]
[1641310670131,3.0,172.48,172.42,27.66479]
[1641310670331,34.27979,172.51,172.42,27.66479]
[1641310670531,3.0,172.49,172.42,27.66479]
[1641310671332,3.0,172.49,172.41,12.2926118]
[1641310671532,3.0,172.49,172.39,27.66479]
[1641310671533,3.0,172.49,172.4,12.2926118]
[1641310672036,3.0,172.42,172.4,12.2926118]
[1641310672236,3.0,172.41,172.36,32.70544716]
[1641310672640,3.0,172.4,172.36,32.70544716]
[1641310672837,3.0,172.39,172.36,32.70544716]
[1641310673237,3.0,172.4,172.36,32.70544716]
[1641310673438,3.0,172.4,172.31,27.66479]
[1641310673839,3.0,172.42,172.31,27.66479]
[1641310674238,40.6954,172.45,172.31,27.66479]
[1641310674438,3.0,172.43,172.31,33.95579]
[1641310674738,3.0,172.42,172.31,66.66123716]
[1641310674938,3.0,172.43,172.31,66.66123716]
[1641310675138,3.0,172.42,172.31,66.66123716]
[1641310675341,3.0,172.43,172.35,27.66479]
[1641310675538,3.0,172.43,172.35,32.41179]
[1641310675738,8.53095157,172.44,172.35,35.41179]
[1641310676140,8.53095157,172.44,172.35,32.41179]
[1641310676339,40.6954,172.45,172.35,32.41179]
[1641310677441,40.6954,172.45,172.38,27.66479]
[1641310677640,43.6954,172.45,172.38,27.66479]
[1641310677842,40.6954,172.45,172.38,27.66479]
[1641310678841,3.0,172.41,172.38,27.66479]
[1641310679441,3.0,172.43,172.38,27.66479]
[1641310679643,43.6954,172.45,172.38,34.12079]
[1641310680044,8.81318657,172.44,172.38,34.12079]
[1641310681547,3.0,172.48,172.43,27.66479]
[1641310681748,35.70544716,172.49,172.43,34.35079]
[1641310682246,32.70544716,172.49,172.43,34.35079]
[1641310682448,11.80982417,172.5,172.43,34.35079]
[1641310682648,3.0,172.49,172.43,34.35079]
[1641310682847,3.0,172.48,172.43,34.35079]
[1641310683448,3.0,172.47,172.43,34.35079]
[1641310683650,3.0,172.47,172.43,27.66479]
[1641310684552,35.70544716,172.48,172.43,27.66479]
[1641310684950,32.70544716,172.48,172.43,27.66479]
[1641310685351,32.70544716,172.49,172.43,27.66479]
[1641310685554,35.70544716,172.49,172.43,27.66479]
[1641310686351,32.70544716,172.49,172.43,27.66479]
[1641310687653,42.9724,172.51,172.43,27.66479]
[1641310687855,3.0,172.5,172.43,27.66479]
[1641310688052,6.27919738,172.5,172.43,27.66479]
[1641310688552,3.0,172.49,172.43,27.66479]
[1641310689556,39.9724,172.51,172.43,27.66479]
[1641310690155,3.27906177,172.5,172.43,27.66479]
[1641310691860,44.95109109,172.5,172.43,27.66479]
[1641310692256,41.67202932,172.5,172.43,27.66479]
[1641310694461,44.67202932,172.5,172.43,27.66479]
[1641310694856,3.27928151,172.49,172.43,27.66479]
[1641310695661,32.70544716,172.49,172.43,27.66479]
[1641310696261,8.96658216,172.5,172.43,27.66479]
[1641310696462,8.96658216,172.5,172.43,34.02679]
[1641310697763,3.27929501,172.49,172.43,34.02679]
[1641310698162,6.27929501,172.49,172.43,34.02679]
[1641310698663,3.0,172.49,172.43,34.02679]
[1641310698863,44.67202932,172.5,172.43,34.02679]
[1641310699063,3.0,172.49,172.43,34.02679]
[1641310699965,3.0,172.48,172.43,34.02679]
[1641310700267,44.67202932,172.5,172.43,34.02679]
[1641310700767,6.27928287,172.49,172.43,34.02679]
[1641310701167,3.27928287,172.49,172.43,34.02679]
[1641310701368,11.96658216,172.5,172.43,34.02679]
[1641310701769,3.27927484,172.49,172.43,34.02679]
[1641310702170,3.0,172.48,172.43,27.66479]
[1641310702370,6.27927484,172.49,172.43,27.66479]
[1641310702569,3.0,172.48,172.43,27.66479]
[1641310702770,12.27360381,172.46,172.43,27.66479]
[1641310703573,15.27360381,172.46,172.43,27.66479]
[1641310703771,15.27360381,172.46,172.35,12.27360381]
[1641310703972,15.27360381,172.46,172.36,12.27360381]
[1641310704371,12.27360381,172.46,172.36,12.27360381]
[1641310704571,12.27360381,172.46,172.36,4.862]
[1641310705171,39.4964,172.45,172.36,4.862]
[1641310705571,39.4964,172.45,172.38,27.66479]
[1641310705872,51.77000381,172.45,172.38,27.66479]
[1641310706572,54.77000381,172.45,172.38,27.66479]
[1641310706773,3.0,172.41,172.38,27.66479]
[1641310706973,3.0,172.43,172.38,27.66479]
[1641310708174,12.27360381,172.4,172.38,27.66479]
[1641310708877,12.27360381,172.41,172.38,27.66479]
[1641310709276,3.0,172.39,172.2,7.0]
[1641310709476,3.0,172.35,172.26,32.70544716]
[1641310709676,27.66479,172.37,172.27,27.66479]
[1641310709876,3.0,172.35,172.26,32.70544716]
[1641310710277,3.2817204,172.36,172.26,32.70544716]
[1641310710478,6.2817204,172.36,172.26,32.70544716]
[1641310711078,3.2817204,172.35,172.26,32.70544716]
[1641310711279,2.33493973,172.34,172.24,3.0]
[1641310711682,27.66479,172.28,172.23,1.64679159]
[1641310711883,34.05779,172.28,172.25,1.64679159]
[1641310712179,34.05779,172.28,172.21,7.12087452]
[1641310712980,2.33493973,172.27,172.22,1.64668992]
[1641310715084,2.33493973,172.27,172.2,1.64668992]
[1641310716181,2.33493973,172.27,172.19,27.66479]
[1641310716382,11.63590771,172.27,172.19,27.66479]
[1641310717381,11.63590771,172.27,172.2,1.63493491]
[1641310718384,11.63590771,172.27,172.13,3.0]
[1641310718586,49.20935487,172.27,172.11,32.70544716]
[1641310718784,3.0,172.25,172.11,32.70544716]
[1641310718984,3.28393411,172.26,172.11,32.70544716]
[1641310719183,49.20935487,172.27,172.08,8.73075889]
[1641310719184,32.70544716,172.22,172.08,8.73075889]
[1641310719386,38.9919,172.21,172.09,3.0]
[1641310719585,38.9919,172.21,172.08,11.73075889]
[1641310719785,27.66479,172.18,172.09,27.66479]
[1641310720189,27.66479,172.18,172.1,1.63471945]
[1641310721593,2.33493973,172.17,172.1,8.73075889]
[1641310723497,2.33493973,172.17,172.1,1.63471945]
[1641310725195,2.33493973,172.17,172.1,8.73080501]
[1641310725895,5.33493973,172.17,172.1,1.63471945]
[1641310726095,11.66213613,172.17,172.1,1.63471945]
[1641310727199,2.33493973,172.17,172.1,4.63471945]
[1641310727699,2.33493973,172.17,172.1,1.63471945]
[1641310727900,2.33493973,172.17,172.11,1.63471945]
[1641310728098,2.33493973,172.17,172.11,6.99171945]
[1641310728698,27.66479,172.18,172.11,6.99171945]
[1641310728899,27.66479,172.18,172.12,1.63471945]
[1641310729698,27.66479,172.18,172.12,4.63471945]
[1641310730300,27.66479,172.18,172.12,1.63471945]
[1641310730900,4.10522084,172.2,172.15,3.0]
[1641310731098,4.10522084,172.2,172.15,8.921]
[1641310731298,4.10522084,172.2,172.16,3.0]
[1641310731500,4.10522084,172.2,172.15,12.921]
[1641310731801,2.45842925,172.21,172.16,4.63471945]
[1641310731999,2.45842925,172.21,172.17,3.0]
[1641310732198,2.45842925,172.21,172.16,1.63471945]
[1641310732599,27.66479,172.26,172.16,4.63471945]
[1641310732800,2.45449559,172.25,172.18,1.63471945]
[1641310733601,2.45449559,172.25,172.17,1.63471945]
[1641310734502,2.45449559,172.25,172.17,3.0]
[1641310734700,2.45449559,172.25,172.15,48.4362122]
[1641310734901,2.45449559,172.25,172.15,41.4362122]
[1641310735100,27.66479,172.26,172.16,1.63471945]
[1641310735504,3.28340083,172.25,172.16,1.63471945]
[1641310735903,2.45455337,172.25,172.16,4.63471945]
[1641310736105,2.45455337,172.25,172.16,1.63471945]
[1641310736305,3.0,172.24,172.16,1.63471945]
[1641310736504,3.0,172.22,172.16,1.63471945]
[1641310736705,3.0,172.23,172.15,39.80149275]
[1641310736903,3.28403551,172.23,172.15,32.70544716]
[1641310737303,3.0,172.23,172.13,43.76761159]
[1641310737504,6.28403551,172.24,172.13,32.70544716]
[1641310737704,3.28403551,172.22,172.13,32.70544716]
[1641310738105,27.66479,172.17,172.13,32.70544716]
[1641310738806,27.66479,172.17,172.08,32.70544716]
[1641310740408,27.66479,172.17,172.11,12.31770542]
[1641310740610,21.09534711,172.17,172.11,12.31770542]
[1641310741008,12.31770542,172.19,172.11,12.31770542]
[1641310741408,27.66479,172.2,172.13,12.31770542]
[1641310742309,53.19390542,172.21,172.13,12.31770542]
[1641310742509,40.8762,172.21,172.14,12.31770542]
[1641310742909,40.8762,172.21,172.14,16.74270542]
[1641310743510,40.8762,172.21,172.15,12.31770542]
[1641310743910,39.98249542,172.23,172.15,12.31770542]
[1641310745511,27.66479,172.23,172.16,12.31770542]
[1641310746311,3.28403041,172.22,172.16,12.31770542]
[1641310747111,7.37303041,172.22,172.16,12.31770542]
[1641310747511,3.28403041,172.21,172.16,12.31770542]
[1641310748117,27.66479,172.17,172.12,43.59043071]
[1641310748312,32.49579,172.17,172.12,32.70544716]
[1641310748516,3.28403041,172.16,172.12,45.02365783]
[1641310748715,3.28403041,172.16,172.12,12.31821067]
[1641310750017,3.28403041,172.16,172.08,32.70544716]
[1641310750218,3.28403041,172.16,172.06,30.66479]
[1641310750419,3.28403041,172.16,172.06,27.66479]
[1641310750817,33.56579,172.17,172.06,27.66479]
[1641310751718,27.66479,172.17,172.06,27.66479]
[1641310752318,32.70544716,172.18,172.11,3.0]
[1641310752519,32.70544716,172.18,172.11,8.585]
[1641310752818,32.70544716,172.18,172.11,5.585]
[1641310754220,32.70544716,172.21,172.14,27.66479]
[1641310754920,3.28471618,172.2,172.14,27.66479]
[1641310755521,6.28471618,172.2,172.14,27.66479]
[1641310755722,6.28471618,172.2,172.05,35.70544716]
[1641310755922,3.0,172.19,172.05,35.70544716]
[1641310756125,27.66479,172.16,172.06,27.66479]
[1641310756828,60.37023716,172.16,172.06,27.66479]
[1641310757029,94.62333716,172.16,172.06,27.66479]
[1641310757528,94.62333716,172.16,172.06,30.66479]
[1641310758429,94.62333716,172.16,172.06,27.66479]
[1641310758635,94.62333716,172.16,172.06,30.66479]
[1641310758831,61.91789,172.16,172.06,30.66479]
[1641310759032,61.91789,172.16,172.06,27.66479]
[1641310760637,61.91789,172.16,172.06,30.66479]
[1641310761437,61.91789,172.16,172.06,27.66479]
[1641310762036,94.62333716,172.16,172.06,27.66479]
[1641310765336,97.62333716,172.16,172.06,27.66479]
[1641310765739,32.70544716,172.14,172.06,27.66479]
[1641310767538,32.70544716,172.15,172.06,27.66479]
[1641310768141,32.70544716,172.13,172.06,27.66479]
[1641310768341,37.60044716,172.13,172.06,27.66479]
[1641310768943,4.895,172.13,172.06,27.66479]
[1641310769342,32.70544716,172.14,172.06,27.66479]
[1641310769542,32.70544716,172.13,172.06,34.39379]
[1641310770741,32.70544716,172.13,172.06,27.66479]
[1641310770943,5.466,172.14,172.06,27.66479]
[1641310771345,38.17144716,172.14,172.06,27.66479]
[1641310772346,38.17144716,172.14,172.06,32.60679]
[1641310773148,5.466,172.14,172.06,32.60679]
[1641310773348,42.66174631,172.15,172.06,27.66479]
[1641310774050,9.95629915,172.15,172.06,27.66479]
[1641310775151,32.70544716,172.13,172.06,27.66479]
[1641310775351,39.28744716,172.13,172.06,27.66479]
[1641310775951,6.582,172.13,172.06,27.66479]
[1641310776656,32.70544716,172.14,172.06,27.66479]
[1641310777658,2.70681439,172.12,172.06,27.66479]
[1641310778160,12.32187058,172.11,172.07,1.40078947]
[1641310778760,12.32187058,172.12,172.07,1.40078947]
[1641310782865,12.32187058,172.11,172.07,1.40078947]
[1641310783465,12.32187058,172.1,172.06,27.66479]
[1641310786369,16.49087058,172.1,172.06,27.66479]
[1641310787974,2.70681439,172.09,172.06,27.66479]
[1641310788775,12.32187058,172.1,172.06,27.66479]
[1641310791279,12.32187058,172.1,172.04,4.0]
[1641310791476,18.26587058,172.1,172.04,4.0]
[1641310792480,4.10792425,172.05,172.04,8.10792425]
[1641310792682,10.05592425,172.05,172.04,8.10792425]
[1641310793184,10.05592425,172.05,172.04,4.0]
[1641310793383,10.05592425,172.05,172.04,5.40067737]
[1641310793581,4.10792425,172.05,172.04,5.40067737]
[1641310793985,4.10792425,172.06,172.04,5.40067737]
[1641310795085,4.10792425,172.06,172.05,1.40067737]
[1641310797686,4.10792425,172.06,172.05,4.40067737]
[1641310797888,4.10792425,172.06,172.05,1.40067737]
[1641310799786,12.32187058,172.08,172.05,1.40067737]
[1641310799986,12.32187058,172.08,172.04,5.50856248]
[1641310800398,17.39287058,172.08,172.04,5.50856248]
[1641310801291,4.10786789,172.05,172.03,27.66479]
[1641310801692,4.10786789,172.05,172.04,7.0]
[1641310801895,4.10786789,172.05,172.04,4.0]
[1641310802400,32.70544716,172.12,172.04,7.0]
[1641310802597,12.3232944,172.09,172.04,5.40069455]
[1641310802796,12.3232944,172.09,172.04,1.40069455]
[1641310803198,12.3232944,172.09,172.03,27.66479]
[1641310803398,4.10759446,172.06,172.05,4.10759446]
[1641310804001,45.36895858,172.13,172.03,27.66479]
[1641310804201,12.32432273,172.08,172.03,31.77289758]
[1641310804401,12.32432273,172.08,172.03,34.77289758]
[1641310805703,12.32432273,172.08,172.03,31.77289758]
[1641310805902,12.32432273,172.08,172.03,30.66479]
[1641310806102,2.70707025,172.09,172.04,5.50852209]
[1641310806103,4.10784323,172.05,172.04,5.50852209]
[1641310806502,12.32432273,172.09,172.03,30.66479]
[1641310806703,4.10763739,172.06,172.03,30.66479]
[1641310807403,12.66351142,172.12,172.04,7.0]
[1641310807604,12.32079909,172.1,172.04,8.40054199]
[1641310807804,12.32079909,172.1,172.06,3.0]
[1641310808004,12.32079909,172.1,172.06,4.655]
[1641310808205,12.32079909,172.1,172.08,4.0]
[1641310808404,12.32079909,172.1,172.09,7.10629548]
[1641310808604,12.32079909,172.13,172.09,4.10629548]
[1641310809405,12.32079909,172.13,172.09,1.4006695]
[1641310810007,12.32079909,172.13,172.09,4.10620695]
[1641310810806,12.32079909,172.12,172.08,4.10637545]
[1641310811706,45.36895858,172.16,172.11,7.0]
[1641310812006,45.36895858,172.16,172.14,4.0]
[1641310812207,45.36895858,172.16,172.14,7.0]
[1641310812407,12.66351142,172.16,172.15,3.0]
[1641310812607,12.66351142,172.16,172.15,61.01758]
[1641310812808,12.66351142,172.16,172.15,33.35279]
[1641310813507,43.5048,172.21,172.15,33.35279]
[1641310813708,32.70544716,172.22,172.15,26.78343868]
[1641310813908,32.70544716,172.22,172.15,31.34443868]
[1641310814307,12.66351142,172.2,172.15,31.34443868]
[1641310814508,12.66351142,172.2,172.15,4.561]
[1641310815108,12.66351142,172.2,172.12,27.66479]
[1641310815510,32.70544716,172.22,172.13,4.10531028]
[1641310816208,35.41251741,172.22,172.14,4.10531028]
[1641310818611,2.70707025,172.22,172.17,4.10531028]
[1641310819211,5.70707025,172.22,172.13,8.38642179]
[1641310819411,10.72107025,172.22,172.13,6.92628641]
[1641310819613,3.28507198,172.21,172.13,6.92628641]
[1641310820213,32.70544716,172.19,172.08,1.53387663]
[1641310820814,32.70544716,172.19,172.11,27.66479]
[1641310821018,35.41251741,172.2,172.11,27.66479]
[1641310821715,45.36895858,172.2,172.12,1.53387663]
[1641310822316,2.70707025,172.19,172.12,1.53387663]
[1641310823018,2.70707025,172.18,172.12,1.53387663]
[1641310823621,2.70707025,172.17,172.12,1.53387663]
[1641310824927,2.70707025,172.16,172.12,1.53387663]
[1641310825621,2.70707025,172.15,172.12,1.53387663]
[1641310826222,7.025e-05,172.15,172.12,4.53387663]
[1641310826421,32.70544716,172.21,172.12,1.53387663]
[1641310826622,75.17294716,172.24,172.12,15.63175441]
[1641310826823,75.17294716,172.24,172.18,27.66479]
[1641310827726,9.52740364,172.23,172.11,27.66479]
[1641310828524,9.52740364,172.23,172.12,6.82786658]
[1641310828726,9.52740364,172.23,172.17,27.66479]
[1641310829825,9.52740364,172.23,172.12,6.82786658]
[1641310830024,9.52740364,172.23,172.11,27.66479]
[1641310830726,9.52740364,172.23,172.12,6.82785293]
[1641310833828,9.52740364,172.23,172.12,10.82785293]
[1641310834035,9.52740364,172.23,172.12,6.82785293]
[1641310834229,3.0,172.22,172.12,6.82785293]
[1641310834428,3.0,172.21,172.12,6.82785293]
[1641310834629,3.0,172.2,172.12,5.293e-05]
[1641310834830,27.66479,172.18,172.11,27.66479]
[1641310835030,33.88279,172.18,172.11,27.66479]
[1641310835433,70.13229,172.24,172.11,27.66479]
[1641310835630,70.13229,172.24,172.11,31.77579]
[1641310835631,73.13229,172.24,172.11,31.77579]
[1641310835831,70.13229,172.24,172.11,31.77579]
[1641310836433,3.0,172.22,172.11,31.77579]
[1641310836636,3.0,172.21,172.11,31.77579]
[1641310836833,30.66479,172.21,172.11,31.77579]
[1641310837034,3.0,172.2,172.11,31.77579]
[1641310837434,30.66479,172.21,172.11,31.77579]
[1641310837635,30.66479,172.21,172.11,27.66479]
[1641310837839,3.0,172.16,172.07,56.43]
[1641310838136,4.189,172.16,172.07,56.43]
[1641310838337,4.189,172.16,172.06,27.66479]
[1641310838938,27.66479,172.15,172.06,27.66479]
[1641310840139,43.6596,172.17,172.07,4.0]
[1641310840339,43.6596,172.17,172.07,9.281]
[1641310840638,43.6596,172.17,172.07,5.281]
[1641310841743,43.6596,172.17,172.06,27.66479]
[1641310841942,12.31948051,172.16,172.08,12.31948051]
[1641310844141,55.97908051,172.17,172.09,16.31948051]
[1641310844343,55.97908051,172.17,172.09,21.11348051]
[1641310844844,43.6596,172.17,172.13,27.66479]
[1641310845045,12.31948051,172.18,172.13,33.40679]
[1641310847449,12.31948051,172.19,172.13,33.40679]
[1641310849053,12.31948051,172.2,172.16,27.66479]
[1641310851757,12.31948051,172.2,172.16,32.41079]
[1641310851958,12.31948051,172.19,172.16,32.41079]
[1641310852559,12.31948051,172.2,172.16,32.41079]
[1641310853262,12.31948051,172.2,172.16,27.66479]
[1641310854263,12.31948051,172.2,172.13,27.66479]
[1641310855064,12.31948051,172.2,172.13,31.66479]
[1641310855865,12.31948051,172.21,172.13,43.98427051]
[1641310856065,12.31948051,172.21,172.13,50.10327051]
[1641310856567,12.31948051,172.21,172.16,4.0]
[1641310856966,12.31948051,172.21,172.18,27.66479]
[1641310857169,12.31948051,172.21,172.18,32.77579]
[1641310857367,12.31948051,172.23,172.18,32.77579]
[1641310858966,12.31948051,172.23,172.19,4.0]
[1641310859880,12.31948051,172.24,172.19,4.0]
[1641310860167,12.31948051,172.24,172.18,27.66479]
[1641310860569,12.31948051,172.22,172.18,27.66479]
[1641310861173,12.31948051,172.21,172.18,27.66479]
[1641310862171,12.31948051,172.22,172.18,27.66479]
[1641310862373,12.31948051,172.22,172.18,31.84679]
[1641310862772,12.31948051,172.23,172.18,31.84679]
[1641310863274,12.31948051,172.23,172.18,35.84679]
[1641310863675,12.31948051,172.22,172.18,35.84679]
[1641310864273,12.31948051,172.24,172.18,35.84679]
[1641310864876,12.31948051,172.24,172.18,38.84679]
[1641310865075,12.31948051,172.24,172.18,35.84679]
[1641310866080,12.31948051,172.24,172.21,4.0]
[1641310866878,12.31948051,172.24,172.22,1.49734039]
[1641310867079,12.31948051,172.26,172.23,27.66479]
[1641310869082,12.31948051,172.26,172.18,43.98427051]
[1641310869282,12.31948051,172.25,172.18,31.66479]
[1641310870082,12.31948051,172.25,172.19,1.49728856]
[1641310871782,12.29349779,172.28,172.19,1.49728856]
[1641310871783,12.31948051,172.23,172.19,1.49728856]
[1641310871982,12.31948051,172.23,172.19,7.68928856]
[1641310872588,12.31948051,172.23,172.2,1.49728856]
[1641310872787,12.31948051,172.24,172.2,1.49728856]
[1641310873186,12.31948051,172.24,172.22,27.66479]
[1641310874190,12.31948051,172.25,172.22,27.66479]
[1641310874791,12.31948051,172.26,172.22,27.66479]
[1641310875193,12.31948051,172.26,172.25,27.66479]
[1641310875391,12.31948051,172.26,172.25,33.40179]
[1641310875591,2.60660097,172.28,172.25,33.40179]
[1641310876491,2.60660097,172.29,172.25,27.66479]
[1641310876891,2.60660097,172.29,172.22,27.66479]